fUST/lending_fUST_20240115
["ID","MTS","AMOUNT","RATE_DAILY","PERIOD"]
[311662421,1705293041535,-1230.64,0.00029034,2]
[311662422,1705293041545,-500.0,0.00029034,2]
[311662423,1705293041554,-502.91814727,0.00029034,2]
[311662424,1705293041563,-500.0,0.00029034,2]
[311662425,1705293041572,-828.96,0.00029034,2]
[311662426,1705293041582,-500.0,0.00029034,2]
[311662427,1705293041591,-515.34296366,0.00029034,2]
[311662428,1705293041600,-500.0,0.00029035,2]
[311662429,1705293041609,-506.46,0.00029035,2]
[311662430,1705293041619,-500.0,0.00029035,2]
[311662431,1705293041629,-500.0,0.00029035,2]
[311662432,1705293041638,-500.0,0.00029035,2]
[311662433,1705293041647,-500.0,0.00029035,2]
[311662434,1705293041657,-573.93,0.00029035,2]
[311662435,1705293041666,-3166.5,0.00029035,2]
[311662436,1705293041675,-3199.51,0.00029035,2]
[311662437,1705293041687,-500.0,0.00029035,2]
[311662438,1705293041696,-500.0,0.00029035,2]
[311662439,1705293041705,-500.0,0.00029035,2]
[311662440,1705293041714,-500.0,0.00029036,2]
[311662441,1705293041723,-500.0,0.00029036,2]
[311662442,1705293041733,-500.0,0.00029036,2]
[311662443,1705293041743,-500.0,0.00029036,2]
[311662444,1705293041752,-500.0,0.00029036,2]
[311662445,1705293041762,-500.0,0.00029036,2]
[311662446,1705293041771,-500.0,0.00029036,2]
[311662447,1705293041780,-500.0,0.00029036,2]
[311662448,1705293041790,-500.0,0.00029036,2]
[311662449,1705293041799,-500.0,0.00029036,2]
[311662450,1705293041809,-1260.88,0.00029036,2]
[311662451,1705293041818,-500.0,0.00029036,2]
[311662452,1705293041827,-500.0,0.00029036,2]
[311662453,1705293041842,-155.490721,0.00029041,2]
[311662454,1705293041852,-153.0,0.00029041,2]
[311662455,1705293041861,-153.0,0.00029041,2]
[311662456,1705293041872,-153.0,0.00029041,2]
[311662457,1705293041882,-154.21631896,0.00029074,2]
[311662458,1705293041891,-154.9562086,0.00029115,2]
[311662459,1705293041900,-155.0,0.00029131,2]
[311662460,1705293041910,-238.6067897,0.00029178,2]
[311662461,1705293041919,-153.0,0.00029178,2]
[311662462,1705293041928,-153.0,0.00029178,2]
[311662463,1705293041939,-153.0,0.00029178,2]
[311662464,1705293041949,-600.94,0.00029307,2]
[311662465,1705293041961,-6277.98,0.00029307,2]
[311662466,1705293041970,-500.0,0.00029307,2]
[311662467,1705293041979,-2225.54,0.00029307,2]
[311662468,1705293041988,-10420.19,0.00029307,2]
[311662469,1705293041997,-500.0,0.00029307,2]
[311662470,1705293042009,-500.0,0.00029308,2]
[311662471,1705293042018,-500.0,0.00029308,2]
[311662472,1705293042027,-1095.86,0.00029308,2]
[311662473,1705293042037,-500.0,0.00029308,2]
[311662474,1705293042046,-500.0,0.00029308,2]
[311662475,1705293042055,-500.0,0.00029308,2]
[311662476,1705293042065,-500.0,0.00029308,2]
[311662477,1705293042074,-500.0,0.00029308,2]
[311662478,1705293042083,-4282.26,0.00029308,2]
[311662479,1705293042092,-500.0,0.00029308,2]
[311662480,1705293042101,-500.0,0.00029308,2]
[311662481,1705293042110,-500.0,0.00029308,2]
[311662482,1705293042119,-500.0,0.00029308,2]
[311662483,1705293042129,-688.26,0.00029308,2]
[311662484,1705293042138,-500.0,0.00029308,2]
[311662485,1705293042147,-1230.64,0.00029308,2]
[311662486,1705293042156,-500.0,0.00029308,2]
[311662487,1705293042166,-500.0,0.00029308,2]
[311662489,1705293042175,-828.96,0.00029308,2]
[311662490,1705293042186,-500.0,0.00029308,2]
[311662492,1705293042195,-500.0,0.00029309,2]
[311662493,1705293042205,-506.46,0.00029309,2]
[311662494,1705293042215,-500.0,0.00029309,2]
[311662496,1705293042224,-500.0,0.00029309,2]
[311662497,1705293042233,-500.0,0.00029309,2]
[311662499,1705293042243,-573.93,0.00029309,2]
[311662500,1705293042253,-3166.5,0.00029309,2]
[311662501,1705293042262,-3199.51,0.00029309,2]
[311662502,1705293042271,-500.0,0.00029309,2]
[311662503,1705293042280,-500.0,0.00029309,2]
[311662504,1705293042289,-500.0,0.00029309,2]
[311662505,1705293042298,-500.0,0.0002931,2]
[311662506,1705293042307,-253.32192153,0.0002931,2]
[311662507,1705293042316,-500.0,0.0002931,2]
[311662508,1705293042325,-500.0,0.0002931,2]
[311662509,1705293042334,-500.0,0.0002931,2]
[311662510,1705293042343,-500.0,0.0002931,2]
[311662511,1705293042352,-500.0,0.0002931,2]
[311662512,1705293042361,-500.0,0.0002931,2]
[311662513,1705293042370,-500.0,0.0002931,2]
[311662514,1705293042379,-500.0,0.0002931,2]
[311662515,1705293042388,-1260.88,0.0002931,2]
[311662516,1705293042396,-500.0,0.0002931,2]
[311662517,1705293042405,-500.0,0.0002931,2]
[311662518,1705293042413,-500.0,0.00029314,2]
[311662519,1705293042422,-155.7547554,0.00029315,2]
[311662521,1705293042442,-153.0,0.00029315,2]
[311662523,1705293042453,-153.0,0.00029315,2]
[311662525,1705293042462,-153.0,0.00029315,2]
[311662527,1705293042471,-153.0,0.00029315,2]
[311662528,1705293042481,-153.0,0.00029315,2]
[311662529,1705293042490,-153.0,0.00029315,2]
[311662530,1705293042500,-153.0,0.00029315,2]
[311662531,1705293042509,-153.0,0.00029315,2]
[311662532,1705293042518,-153.0,0.00029315,2]
[311662533,1705293042532,-153.0,0.00029315,2]
[311662534,1705293042546,-283.03093674,0.00029351,2]
[311662535,1705293042556,-816.87834428,0.00029351,2]
[311662537,1705293042567,-534.68234819,0.00029351,2]
[311662539,1705293042577,-526.66016898,0.00029351,2]
[311662540,1705293042588,-273.43529154,0.00029366,2]
[311662541,1705293042599,-1038.10415225,0.00029366,2]
[311662542,1705293042609,-229.24243364,0.00029367,2]
[311662543,1705293042619,-317.56956345,0.00029367,2]
[311662545,1705293042629,-3492.45335403,0.00029398,2]
[311662546,1705293042638,-153.84014321,0.00029504,2]
[311662548,1705293042648,-152.31739518,0.00029524,2]
[311662550,1705293042657,-154.21631896,0.00029552,2]
[311662552,1705293042666,-600.94,0.00029581,2]
[311662554,1705293042676,-6277.98,0.00029581,2]
[311662556,1705293042687,-500.0,0.00029581,2]
[311662558,1705293042696,-2225.54,0.00029581,2]
[311662560,1705293042706,-10420.19,0.00029581,2]
[311662562,1705293042715,-500.0,0.00029581,2]
[311662564,1705293042725,-500.0,0.00029582,2]
[311662566,1705293042734,-500.0,0.00029582,2]
[311662568,1705293042743,-1095.86,0.00029582,2]
[311662570,1705293042753,-500.0,0.00029582,2]
[311662572,1705293042763,-500.0,0.00029582,2]
[311662574,1705293042773,-500.0,0.00029582,2]
[311662576,1705293042782,-500.0,0.00029582,2]
[311662578,1705293042791,-4282.26,0.00029582,2]
[311662580,1705293042800,-500.0,0.00029582,2]
[311662581,1705293042809,-500.0,0.00029582,2]
[311662582,1705293042818,-500.0,0.00029582,2]
[311662584,1705293042827,-500.0,0.00029582,2]
[311662586,1705293042836,-688.26,0.00029582,2]
[311662588,1705293042845,-500.0,0.00029582,2]
[311662589,1705293042855,-1230.64,0.00029582,2]
[311662590,1705293042864,-500.0,0.00029582,2]
[311662591,1705293042872,-500.0,0.00029582,2]
[311662592,1705293042882,-828.96,0.00029582,2]
[311662593,1705293042891,-500.0,0.00029582,2]
[311662599,1705293043010,-500.0,0.00029583,2]
[311662600,1705293043020,-506.46,0.00029583,2]
[311662601,1705293043029,-500.0,0.00029583,2]
[311662602,1705293043039,-500.0,0.00029583,2]
[311662603,1705293043048,-500.0,0.00029583,2]
[311662604,1705293043058,-573.93,0.00029583,2]
[311662605,1705293043068,-3166.5,0.00029583,2]
[311662606,1705293043077,-3199.51,0.00029583,2]
[311662607,1705293043086,-500.0,0.00029583,2]
[311662608,1705293043095,-500.0,0.00029583,2]
[311662609,1705293043104,-500.0,0.00029583,2]
[311662610,1705293043113,-500.0,0.00029584,2]
[311662611,1705293043123,-500.0,0.00029584,2]
[311662612,1705293043132,-500.0,0.00029584,2]
[311662613,1705293043141,-500.0,0.00029584,2]
[311662614,1705293043150,-500.0,0.00029584,2]
[311662615,1705293043159,-500.0,0.00029584,2]
[311662616,1705293043169,-500.0,0.00029584,2]
[311662617,1705293043178,-371.67830078,0.00029584,2]
[311662618,1705293043188,-500.0,0.00029584,2]
[311662619,1705293043198,-1260.88,0.00029584,2]
[311662620,1705293043207,-500.0,0.00029584,2]
[311662621,1705293043216,-500.0,0.00029584,2]
[311662622,1705293043226,-4562.8811098,0.00029658,2]
[311662623,1705293043236,-507.44515137,0.0002968,3]
[311662624,1705293043245,-153.84014321,0.00029776,2]
[311662625,1705293043254,-500.0,0.00029789,2]
[311662626,1705293043263,-600.94,0.00029855,2]
[311662627,1705293043272,-6277.98,0.00029855,2]
[311662628,1705293043282,-500.0,0.00029855,2]
[311662629,1705293043291,-2225.54,0.00029855,2]
[311662630,1705293043301,-10420.19,0.00029855,2]
[311662631,1705293043310,-589.20604364,0.00029855,2]
[311662632,1705293043319,-350.86707901,0.00029856,2]
[311662633,1705293043328,-500.0,0.00029856,2]
[311662634,1705293043337,-1095.86,0.00029856,2]
[311662635,1705293043346,-500.0,0.00029856,2]
[311662636,1705293043356,-500.0,0.00029856,2]
[311662637,1705293043364,-500.0,0.00029856,2]
[311662638,1705293043373,-500.0,0.00029856,2]
[311662639,1705293043382,-4282.26,0.00029856,2]
[311662640,1705293043391,-500.0,0.00029856,2]
[311662641,1705293043400,-500.0,0.00029856,2]
[311662642,1705293043409,-500.0,0.00029856,2]
[311662643,1705293043419,-500.0,0.00029856,2]
[311662644,1705293043428,-688.26,0.00029856,2]
[311662645,1705293043439,-500.0,0.00029856,2]
[311662646,1705293043450,-1230.64,0.00029856,2]
[311662647,1705293043459,-500.0,0.00029856,2]
[311662648,1705293043470,-500.0,0.00029856,2]
[311662649,1705293043479,-828.96,0.00029856,2]
[311662650,1705293043489,-500.0,0.00029856,2]
[311662651,1705293043497,-500.0,0.00029857,2]
[311662652,1705293043506,-506.46,0.00029857,2]
[311662653,1705293043516,-500.0,0.00029857,2]
[311662654,1705293043525,-500.0,0.00029857,2]
[311662655,1705293043537,-500.0,0.00029857,2]
[311662656,1705293043547,-573.93,0.00029857,2]
[311662657,1705293043557,-3166.5,0.00029857,2]
[311662658,1705293043569,-3199.51,0.00029857,2]
[311662659,1705293043578,-500.0,0.00029857,2]
[311662660,1705293043587,-500.0,0.00029857,2]
[311662661,1705293043596,-500.0,0.00029857,2]
[311662662,1705293043605,-500.0,0.00029858,2]
[311662663,1705293043614,-500.0,0.00029858,2]
[311662664,1705293043624,-500.0,0.00029858,2]
[311662665,1705293043633,-500.0,0.00029858,2]
[311662666,1705293043642,-500.0,0.00029858,2]
[311662667,1705293043651,-500.0,0.00029858,2]
[311662668,1705293043661,-435.6508875,0.00029858,2]
[311662669,1705293043671,-500.0,0.00029858,2]
[311662670,1705293043680,-1260.88,0.00029858,2]
[311662671,1705293043690,-500.0,0.00029858,2]
[311662672,1705293043699,-500.0,0.00029858,2]
[311662673,1705293043708,-680.57379999,0.00029863,2]
[311662674,1705293043717,-261.27836778,0.00029915,7]
[311662675,1705293043726,-500.0,0.00029916,2]
[311662676,1705293043736,-571.92,0.00029916,2]
[311662677,1705293043745,-1038.73,0.00029916,2]
[311662678,1705293043755,-500.0,0.00029916,2]
[311662679,1705293043764,-500.0,0.00029916,2]
[311662680,1705293043773,-500.0,0.00029916,2]
[311662681,1705293043783,-500.0,0.00029916,2]
[311662682,1705293043792,-502.80293776,0.00029916,2]
[311662683,1705293043802,-1032.86239032,0.00029998,2]
[311662684,1705293043811,-3941.45443239,0.00029998,2]
[311662685,1705293043821,-179.411424,0.00029998,2]
[311662686,1705293043841,-200.12398465,0.00029998,2]
[311662687,1705293043852,-155.47415093,0.00029998,2]
[311662688,1705293043861,-10503.19627673,0.00029998,2]
[311662689,1705293043871,-270.67465989,0.00029998,2]
[311662690,1705293043880,-1291.41349535,0.00029998,2]
[311662691,1705293043889,-155.83905828,0.00029998,2]
[311662692,1705293043899,-1253.98841817,0.00029998,2]
[311662693,1705293043908,-254.75187703,0.00029998,2]
[311662694,1705293043918,-1962.82607914,0.00029998,2]
[311662695,1705293043927,-268.58328075,0.00029998,2]
[311662696,1705293043938,-262.20236213,0.00029998,2]
[311662697,1705293043949,-165.75811822,0.00029998,2]
[311662698,1705293043958,-856.71558128,0.00029998,2]
[311662699,1705293043967,-155.1988074,0.00029998,2]
[311662700,1705293043976,-334.226704,0.00029998,2]
[311662701,1705293043988,-1326.91768569,0.00029998,2]
[311662702,1705293043998,-368.47994274,0.00029998,2]
[311662703,1705293044008,-243.02974575,0.00029998,2]
[311662704,1705293044018,-682.25182452,0.00029998,2]
[311662705,1705293044027,-17627.22974364,0.00029998,2]
[311662706,1705293044036,-1938.45227094,0.00029998,2]
[311662707,1705293044046,-7956.59126092,0.00029998,2]
[311662708,1705293044055,-155.0231291,0.00029998,2]
[311662709,1705293044064,-155.27557612,0.00029998,2]
[311662710,1705293044073,-528.82504816,0.00029998,2]
[311662711,1705293044082,-155.0,0.00029998,2]
[311662712,1705293044091,-155.32178474,0.00029998,2]
[311662713,1705293044100,-266.5639794,0.00029998,2]
[311662714,1705293044109,-3468.59352094,0.00029998,2]
[311662715,1705293044119,-246.10686283,0.00029998,2]
[311662716,1705293044127,-1016.24078591,0.00029999,2]
[311662717,1705293044136,-1614.01408711,0.00029999,2]
[311662718,1705293044145,-500.0,0.00029999,2]
[311662719,1705293044155,-1414.29953935,0.0003,2]
[311662720,1705293044164,-28282.07598088,0.0003,3]
[311662721,1705293044173,-284.838519,0.0003,5]
[311662722,1705293044183,-194.0,0.0003,2]
[311662723,1705293044193,-154.21631896,0.00030031,2]
[311662724,1705293044202,-153.84014321,0.00030037,7]
[311662725,1705293044212,-600.94,0.00030129,2]
[311662726,1705293044221,-6277.98,0.00030129,2]
[311662727,1705293044231,-499.92863546,0.00030129,2]
[311662728,1705293044240,-2225.54,0.00030129,2]
[311662729,1705293044249,-10420.19,0.00030129,2]
[311662730,1705293044259,-197.5089968,0.0003013,2]
[311662731,1705293044268,-500.0,0.0003013,2]
[311662732,1705293044277,-1095.86,0.0003013,2]
[311662733,1705293044286,-500.0,0.0003013,2]
[311662734,1705293044295,-500.0,0.0003013,2]
[311662735,1705293044304,-500.0,0.0003013,2]
[311662736,1705293044313,-4282.26,0.0003013,2]
[311662737,1705293044322,-500.0,0.0003013,2]
[311662738,1705293044330,-500.0,0.0003013,2]
[311662739,1705293044339,-500.0,0.0003013,2]
[311662740,1705293044348,-500.0,0.0003013,2]
[311662741,1705293044357,-688.26,0.0003013,2]
[311662742,1705293044366,-500.0,0.0003013,2]
[311662743,1705293044377,-1230.64,0.0003013,2]
[311662744,1705293044386,-500.0,0.0003013,2]
[311662745,1705293044395,-500.0,0.0003013,2]
[311662746,1705293044404,-828.96,0.0003013,2]
[311662747,1705293044414,-500.0,0.0003013,2]
[311662748,1705293044423,-500.0,0.00030131,2]
[311662749,1705293044432,-506.46,0.00030131,2]
[311662750,1705293044441,-500.0,0.00030131,2]
[311662751,1705293044450,-500.0,0.00030131,2]
[311662752,1705293044459,-573.93,0.00030131,2]
[311662753,1705293044468,-3166.5,0.00030131,2]
[311662754,1705293044477,-3199.51,0.00030131,2]
[311662755,1705293044486,-500.0,0.00030131,2]
[311662756,1705293044495,-500.0,0.00030131,2]
[311662757,1705293044504,-500.0,0.00030131,2]
[311662758,1705293044513,-500.0,0.00030132,2]
[311662759,1705293044523,-500.0,0.00030132,2]
[311662760,1705293044538,-500.0,0.00030132,2]
[311662761,1705293044547,-500.0,0.00030132,2]
[311662762,1705293044556,-500.0,0.00030132,2]
[311662763,1705293044565,-178.65,0.00030132,2]
[311662764,1705293044576,-500.0,0.00030132,2]
[311662765,1705293044585,-1260.88,0.00030132,2]
[311662766,1705293044594,-500.0,0.00030132,2]
[311662767,1705293044604,-500.0,0.00030132,2]
[311662768,1705293044614,-500.0,0.00030136,2]
[311662769,1705293044625,-153.0,0.00030137,2]
[311662770,1705293044634,-153.0,0.00030137,2]
[311662771,1705293044645,-153.0,0.00030137,2]
[311662772,1705293044654,-153.0,0.00030137,2]
[311662773,1705293044664,-500.0,0.0003019,2]
[311662774,1705293044674,-571.92,0.0003019,2]
[311662775,1705293044683,-1038.73,0.0003019,2]
[311662776,1705293044693,-154.9562086,0.0003019,7]
[311662777,1705293044702,-510.11734616,0.0003019,2]
[311662778,1705293044711,-500.0,0.0003019,2]
[311662779,1705293044720,-500.0,0.0003019,2]
[311662780,1705293044731,-500.0,0.0003019,2]
[311662781,1705293044740,-153.84014321,0.00030199,7]
[311662782,1705293044750,-600.94,0.00030403,2]
[311662783,1705293044759,-6277.98,0.00030403,2]
[311662784,1705293044770,-2225.54,0.00030403,2]
[311662785,1705293044780,-10420.19,0.00030403,2]
[311662786,1705293044789,-500.0,0.00030404,2]
[311662787,1705293044798,-1095.86,0.00030404,2]
[311662788,1705293044807,-500.0,0.00030404,2]
[311662789,1705293044817,-500.0,0.00030404,2]
[311662790,1705293044826,-500.0,0.00030404,2]
[311662791,1705293044835,-4282.26,0.00030404,2]
[311662792,1705293044845,-500.0,0.00030404,2]
[311662793,1705293044854,-500.0,0.00030404,2]
[311662794,1705293044863,-500.0,0.00030404,2]
[311662795,1705293044873,-504.15428497,0.00030404,2]
[311662796,1705293044882,-688.26,0.00030404,2]
[311662797,1705293044892,-500.0,0.00030404,2]
[311662798,1705293044901,-1230.64,0.00030404,2]
[311662799,1705293044911,-500.0,0.00030404,2]
[311662800,1705293044920,-500.0,0.00030404,2]
[311662801,1705293044929,-828.96,0.00030404,2]
[311662802,1705293044941,-500.0,0.00030405,2]
[311662803,1705293044951,-506.46,0.00030405,2]
[311662804,1705293044962,-500.0,0.00030405,2]
[311662805,1705293044971,-500.0,0.00030405,2]
[311662806,1705293044980,-573.93,0.00030405,2]
[311662807,1705293044991,-3166.5,0.00030405,2]
[311662808,1705293045000,-3199.51,0.00030405,2]
[311662809,1705293045010,-500.0,0.00030405,2]
[311662810,1705293045019,-500.0,0.00030405,2]
[311662811,1705293045028,-500.0,0.00030406,2]
[311662812,1705293045038,-500.0,0.00030406,2]
[311662813,1705293045123,-500.0,0.00030406,2]
[311662814,1705293045133,-500.0,0.00030406,2]
[311662815,1705293045143,-500.0,0.00030406,2]
[311662816,1705293045152,-500.0,0.00030406,2]
[311662817,1705293045161,-1260.88,0.00030406,2]
[311662818,1705293045171,-500.0,0.00030406,2]
[311662819,1705293045181,-500.0,0.00030406,2]
[311662820,1705293045193,-407.30916427,0.00030464,2]
[311662821,1705293045202,-1038.73,0.00030464,2]
[311662822,1705293045213,-571.92,0.00030464,2]
[311662823,1705293045222,-500.0,0.00030464,2]
[311662824,1705293045232,-500.0,0.00030464,2]
[311662825,1705293045242,-155.0,0.00030501,2]
[311662826,1705293045252,-394.08,0.00030518,2]
[311662827,1705293045261,-710.27,0.00030534,2]
[311662828,1705293045270,-4289.7,0.00030543,2]
[311662829,1705293045279,-3323.62,0.00030547,2]
[311662830,1705293045289,-153.84014321,0.00030605,7]
[311662831,1705293045300,-600.94,0.00030677,2]
[311662832,1705293045309,-6277.98,0.00030677,2]
[311662833,1705293045318,-2225.54,0.00030677,2]
[311662834,1705293045328,-10420.19,0.00030677,2]
[311662835,1705293045338,-500.0,0.00030678,2]
[311662836,1705293045348,-1095.86,0.00030678,2]
[311662837,1705293045358,-500.0,0.00030678,2]
[311662838,1705293045367,-4282.26,0.00030678,2]
[311662839,1705293045377,-500.0,0.00030678,2]
[311662840,1705293045386,-500.0,0.00030678,2]
[311662841,1705293045395,-500.0,0.00030678,2]
[311662842,1705293045404,-688.26,0.00030678,2]
[311662843,1705293045413,-500.0,0.00030678,2]
[311662844,1705293045422,-1230.64,0.00030678,2]
[311662845,1705293045433,-500.0,0.00030678,2]
[311662846,1705293045444,-828.96,0.00030678,2]
[311662847,1705293045453,-500.0,0.00030679,2]
[311662848,1705293045463,-506.46,0.00030679,2]
[311662849,1705293045472,-500.0,0.00030679,2]
[311662850,1705293045482,-500.0,0.00030679,2]
[311662851,1705293045491,-573.93,0.00030679,2]
[311662852,1705293045501,-3166.5,0.00030679,2]
[311662853,1705293045511,-3199.51,0.00030679,2]
[311662854,1705293045521,-500.0,0.00030679,2]
[311662855,1705293045531,-500.0,0.00030679,2]
[311662857,1705293045544,-500.0,0.0003068,2]
[311662858,1705293045552,-500.0,0.0003068,2]
[311662860,1705293045562,-500.0,0.0003068,2]
[311662862,1705293045571,-500.0,0.0003068,2]
[311662864,1705293045582,-500.0,0.0003068,2]
[311662866,1705293045591,-500.0,0.0003068,2]
[311662868,1705293045600,-500.0,0.0003068,2]
[311662870,1705293045610,-1260.88,0.0003068,2]
[311662872,1705293045620,-500.0,0.0003068,2]
[311662874,1705293045630,-152.61,0.0003068,30]
[311662876,1705293045639,-500.0,0.0003068,2]
[311662878,1705293045648,-707.0,0.00030692,30]
[311662880,1705293045657,-153.84014321,0.00030702,7]
[311662881,1705293045666,-1038.73,0.00030738,2]
[311662882,1705293045676,-571.92,0.00030738,2]
[311662883,1705293045685,-500.0,0.00030738,2]
[311662884,1705293045697,-500.0,0.00030738,2]
[311662885,1705293045709,-152.31739518,0.00030895,7]
[311662886,1705293045718,-280.0,0.00030923,15]
[311662887,1705293045726,-600.94,0.00030951,2]
[311662888,1705293045735,-6277.98,0.00030951,2]
[311662889,1705293045744,-2225.54,0.00030951,2]
[311662890,1705293045754,-10420.19,0.00030951,2]
[311662891,1705293045763,-500.0,0.00030952,2]
[311662892,1705293045774,-1095.86,0.00030952,2]
[311662893,1705293045785,-500.0,0.00030952,2]
[311662894,1705293045795,-4282.26,0.00030952,2]
[311662895,1705293045805,-500.0,0.00030952,2]
[311662896,1705293045815,-500.0,0.00030952,2]
[311662898,1705293045824,-688.26,0.00030952,2]
[311662899,1705293045834,-500.0,0.00030952,2]
[311662900,1705293045843,-1230.64,0.00030952,2]
[311662901,1705293045852,-500.0,0.00030952,2]
[311662902,1705293045864,-828.96,0.00030952,2]
[311662903,1705293045873,-500.0,0.00030953,2]
[311662904,1705293045882,-506.46,0.00030953,2]
[311662905,1705293045891,-500.0,0.00030953,2]
[311662906,1705293045900,-500.0,0.00030953,2]
[311662907,1705293045909,-573.93,0.00030953,2]
[311662908,1705293045918,-3166.5,0.00030953,2]
[311662909,1705293045927,-3199.51,0.00030953,2]
[311662910,1705293045936,-500.0,0.00030953,2]
[311662911,1705293045947,-579.14690654,0.00030953,2]
[311662912,1705293045956,-500.0,0.00030954,2]
[311662913,1705293045965,-500.0,0.00030954,2]
[311662914,1705293045975,-500.0,0.00030954,2]
[311662915,1705293045984,-500.0,0.00030954,2]
[311662916,1705293045993,-500.0,0.00030954,2]
[311662917,1705293046002,-500.0,0.00030954,2]
[311662918,1705293046011,-1260.88,0.00030954,2]
[311662919,1705293046019,-500.0,0.00030954,2]
[311662920,1705293046028,-519.0460674,0.00030954,2]
[311662921,1705293046038,-562.16562428,0.00030955,14]
[311662922,1705293046047,-500.0,0.00030955,2]
[311662923,1705293046056,-154.9562086,0.00030967,7]
[311662924,1705293046065,-619.57237379,0.00030986,2]
[311662925,1705293046074,-490.55209365,0.00030986,2]
[311662926,1705293046083,-500.0,0.00030986,2]
[311662927,1705293046093,-500.0,0.00030986,2]
[311662928,1705293046103,-478.10367477,0.00030986,2]
[311662929,1705293046114,-791.87386656,0.00030986,2]
[311662930,1705293046123,-500.0,0.00030986,2]
[311662931,1705293046132,-500.0,0.00030986,2]
[311662932,1705293046141,-791.87386656,0.00030986,2]
[311662933,1705293046150,-538.19847444,0.00030986,2]
[311662934,1705293046160,-500.0,0.00030986,2]
[311662935,1705293046168,-791.87386656,0.00030986,2]
[311662936,1705293046178,-434.70452152,0.00030986,2]
[311662937,1705293046187,-791.87386656,0.00030986,2]
[311662938,1705293046197,-500.0,0.00030986,2]
[311662939,1705293046206,-791.87386656,0.00030986,2]
[311662940,1705293046216,-500.0,0.00030986,2]
[311662941,1705293046225,-500.0,0.00030986,2]
[311662942,1705293046233,-500.0,0.00030986,2]
[311662943,1705293046242,-791.87386656,0.00030986,2]
[311662944,1705293046252,-500.0,0.00030986,2]
[311662945,1705293046262,-197.98564945,0.00030986,2]
[311662946,1705293046271,-500.0,0.00030986,2]
[311662947,1705293046279,-791.87386656,0.00030986,2]
[311662948,1705293046289,-500.0,0.00030986,2]
[311662949,1705293046301,-791.87386656,0.00030986,2]
[311662950,1705293046309,-791.87386656,0.00030986,2]
[311662951,1705293046318,-500.0,0.00030986,2]
[311662952,1705293046328,-791.87386656,0.00030986,2]
[311662953,1705293046338,-500.0,0.00030986,2]
[311662954,1705293046347,-791.87386656,0.00030986,2]
[311662955,1705293046356,-500.0,0.00030986,2]
[311662956,1705293046365,-791.87386656,0.00030986,2]
[311662957,1705293046374,-791.87386656,0.00030986,2]
[311662958,1705293046384,-500.0,0.00030986,2]
[311662959,1705293046393,-791.87386656,0.00030986,2]
[311662960,1705293046403,-474.12854558,0.00030986,2]
[311662961,1705293046412,-791.87386656,0.00030986,2]
[311662962,1705293046421,-791.87386656,0.00030986,2]
[311662963,1705293046430,-791.87386656,0.00030986,2]
[311662964,1705293046438,-791.87386656,0.00030986,2]
[311662965,1705293046448,-791.87386656,0.00030986,2]
[311662966,1705293046457,-791.87386656,0.00030986,2]
[311662967,1705293046466,-791.87386656,0.00030986,2]
[311662968,1705293046475,-791.87386656,0.00030986,2]
[311662969,1705293046484,-791.87386656,0.00030986,2]